bitfinex-derivatives/quotes_BTCF0:USTF0_20251011
["timestamp","ask_amount","ask_price","bid_price","bid_amount"]
[1760220445730,0.59876159,111020.0,111010.0,0.5908]
[1760220446929,1.29665273,111020.0,111010.0,0.23]
[1760220447129,0.03616,110990.0,110970.0,0.36974732]
[1760220447331,0.1031471,110980.0,110970.0,0.5708]
[1760220447735,0.1261671,110980.0,110970.0,0.5708]
[1760220448229,0.5261671,110980.0,110970.0,0.211]
[1760220448423,0.8869671,110980.0,110970.0,0.211]
[1760220448623,0.8869671,110980.0,110970.0,0.212]
[1760220448826,0.8869671,110980.0,110950.0,0.5908]
[1760220448827,0.1261833,110960.0,110950.0,0.5908]
[1760220449028,0.1251833,110960.0,110950.0,0.5708]
[1760220449429,0.8859833,110960.0,110950.0,0.21]
[1760220452232,0.4629633,110960.0,110950.0,0.21]
[1760220452534,0.4639633,110960.0,110950.0,0.21]
[1760220452732,0.1031633,110960.0,110950.0,0.21]
[1760220453337,0.01314,110960.0,110950.0,0.3000315]
[1760220453538,0.44674493,110980.0,110970.0,0.0900152]
[1760220453735,0.08594493,110980.0,110970.0,0.7108152]
[1760220453936,0.08594493,110980.0,110970.0,1.1108152]
[1760220455241,0.17595203,110980.0,110970.0,1.0208]
[1760220455440,0.17595203,110980.0,110970.0,1.0228]
[1760220458446,0.17595203,110980.0,110970.0,0.662]
[1760220459546,0.17595203,110980.0,110970.0,0.7520152]
[1760220459746,0.17595203,110980.0,110970.0,1.1128152]
[1760220460648,0.17595203,110980.0,110970.0,1.48937286]
[1760220461049,0.07280493,110980.0,110970.0,1.1128152]
[1760220461341,0.4635021,111000.0,110970.0,1.48937286]
[1760220461546,0.48616875,111000.0,110990.0,0.37655766]
[1760220461745,0.48616875,111000.0,110990.0,0.64655766]
[1760220461746,0.12536875,111000.0,110990.0,0.64655766]
[1760220461937,0.4634935,111010.0,111000.0,0.0899909]
[1760220462142,0.1026935,111010.0,111000.0,1.03734856]
[1760220462742,0.08413659,111020.0,111010.0,0.0899828]
[1760220462948,0.08413659,111020.0,111010.0,0.3399828]
[1760220463145,0.08413659,111020.0,111010.0,0.7007828]
[1760220463340,0.17411129,111020.0,111010.0,1.07734046]
[1760220463938,0.17411129,111020.0,111010.0,0.25]
[1760220464139,0.17611129,111020.0,111010.0,0.25]
[1760220464640,0.55838129,111020.0,111010.0,0.25]
[1760220464948,0.95838129,111020.0,111010.0,0.25]
[1760220465350,0.17611129,111020.0,111010.0,0.25]
[1760220465547,0.53691129,111020.0,111010.0,0.25]
[1760220466249,0.53691129,111020.0,111010.0,0.3399828]
[1760220466455,0.07262659,111020.0,111010.0,1.07734046]
[1760220466651,0.002,111020.0,111010.0,1.07734046]
[1760220466856,0.01351,111040.0,111030.0,0.0899666]
[1760220467148,0.1034685,111040.0,111030.0,0.3299666]
[1760220467353,0.01351,111040.0,111030.0,1.06732426]
[1760220467755,0.01351,111040.0,111030.0,0.6907666]
[1760220468158,0.1034685,111040.0,111030.0,0.6907666]
[1760220468356,0.1044685,111040.0,111030.0,0.6907666]
[1760220468863,0.1044685,111040.0,111030.0,0.6008]
[1760220469053,0.1054685,111040.0,111030.0,0.6008]
[1760220469556,0.1054685,111040.0,111030.0,0.24]
[1760220471852,0.17835652,111040.0,111030.0,0.24]
[1760220472458,0.17835652,111040.0,111030.0,0.6008]
[1760220472651,0.17735652,111040.0,111030.0,0.6008]
[1760220472959,0.17635652,111040.0,111030.0,0.6008]
[1760220473353,0.17635652,111040.0,111030.0,0.24]
[1760220473552,0.17635652,111040.0,111030.0,0.6008]
[1760220476459,0.17635652,111040.0,111030.0,0.6907666]
[1760220476655,0.37431,111060.0,111050.0,0.0899504]
[1760220476859,0.1034523,111060.0,111050.0,0.24]
[1760220477054,0.4642523,111060.0,111050.0,0.24]
[1760220477254,0.1034523,111060.0,111050.0,0.24]
[1760220477448,0.4642523,111060.0,111050.0,0.24]
[1760220477656,0.4857223,111060.0,111050.0,0.24]
[1760220478762,0.8857223,111060.0,111050.0,0.24]
[1760220479564,0.5249223,111060.0,111050.0,0.24]
[1760220479765,0.1249223,111060.0,111050.0,0.24]
[1760220480067,0.1034523,111060.0,111050.0,0.24]
[1760220480258,0.4857223,111060.0,111050.0,0.24]
[1760220480457,0.19630055,111060.0,111050.0,0.24]
[1760220480663,0.55710055,111060.0,111050.0,0.24]
[1760220481061,0.53563055,111060.0,111050.0,0.24]
[1760220481966,0.55710055,111060.0,111050.0,0.24]
[1760220482669,0.53563055,111060.0,111050.0,0.24]
[1760220483162,0.55673055,111060.0,111050.0,0.24]
[1760220484460,0.53563055,111060.0,111050.0,0.24]
[1760220484660,0.55673055,111060.0,111050.0,0.24]
[1760220488368,0.17483055,111060.0,111050.0,0.3299504]
[1760220488874,0.17483055,111060.0,111050.0,1.06730806]
[1760220489372,0.17483055,111060.0,111050.0,0.6907504]
[1760220489764,0.17483055,111060.0,111050.0,0.69956935]
[1760220489965,0.17483055,111060.0,111050.0,0.33876935]
[1760220491073,0.19593055,111060.0,111050.0,0.24]
[1760220491263,0.17483055,111060.0,111050.0,0.24]
[1760220492473,0.95610586,111060.0,111050.0,0.24]
[1760220493767,0.5795482,111060.0,111050.0,0.24]
[1760220493974,0.1976482,111060.0,111050.0,0.3299504]
[1760220494174,0.1976482,111060.0,111050.0,0.24]
[1760220494471,0.2187482,111060.0,111050.0,0.24]
[1760220496473,0.5795482,111060.0,111050.0,0.24]
[1760220497172,0.95610586,111060.0,111050.0,0.24]
[1760220497976,1.35610586,111060.0,111050.0,0.24]
[1760220499772,0.5795482,111060.0,111050.0,0.24]
[1760220500869,0.2187482,111060.0,111050.0,0.24]
[1760220501071,0.5795482,111060.0,111050.0,0.24]
[1760220501271,0.1976482,111060.0,111050.0,0.24]
[1760220501976,0.19768784,111060.0,111050.0,0.24]
[1760220502671,0.21878784,111060.0,111050.0,0.24]
[1760220502878,0.19768784,111060.0,111050.0,0.24]
[1760220504480,0.21878784,111060.0,111050.0,0.24]
[1760220505179,0.19768784,111060.0,111050.0,0.24]
[1760220505881,0.19768784,111060.0,111050.0,0.3299504]
[1760220507081,0.09423554,111060.0,111050.0,1.10650806]
[1760220507280,0.18417784,111060.0,111050.0,1.10650806]
[1760220507876,0.19792784,111060.0,111050.0,1.46730806]
[1760220508476,0.09423554,111060.0,111050.0,1.46730806]
[1760220508677,0.07137825,111060.0,111050.0,1.46730806]
[1760220508979,0.1036923,111060.0,111050.0,1.46730806]
[1760220512082,0.17652393,111060.0,111050.0,1.46730806]
[1760220513881,0.17652393,111060.0,111050.0,1.0907504]
[1760220514084,0.17652393,111060.0,111050.0,1.46730806]
[1760220517683,0.01351,111080.0,111070.0,0.0899342]
[1760220517886,0.03630638,111080.0,111070.0,0.68649186]
[1760220518288,0.03630638,111080.0,111070.0,0.69541909]
[1760220518587,0.1034361,111080.0,111070.0,1.05621909]
[1760220518781,0.1044361,111080.0,111070.0,1.05621909]
[1760220518976,0.1044361,111080.0,111070.0,0.67966143]
[1760220519181,0.01551,111080.0,111070.0,0.67966143]
[1760220519688,0.01551,111080.0,111070.0,1.00037535]
[1760220520284,0.01551,111080.0,111070.0,0.67966143]
[1760220520484,0.01551,111080.0,111070.0,1.00037535]
[1760220521184,0.08707484,111080.0,111070.0,1.00037535]
[1760220521586,0.08707484,111080.0,111070.0,0.67966143]
[1760220522186,0.08707484,111080.0,111070.0,1.07966143]
[1760220522388,0.07308484,111080.0,111070.0,0.67966143]
[1760220522588,0.08707484,111080.0,111070.0,0.67966143]
[1760220523589,0.17700094,111080.0,111070.0,0.67966143]
[1760220527192,0.17700094,111080.0,111070.0,0.58972723]
[1760220530681,0.17700094,111080.0,111070.0,0.22892723]
[1760220530884,0.17700094,111080.0,111070.0,0.58972723]
[1760220531287,0.17700094,111080.0,111070.0,0.22892723]
[1760220531488,0.19963094,111080.0,111070.0,0.22]
[1760220532892,0.96034166,111080.0,111070.0,0.22]
[1760220533285,1.29631285,111080.0,111070.0,0.22]
[1760220533487,1.31908237,111080.0,111070.0,0.22]
[1760220533688,1.31908237,111080.0,111070.0,0.19373]
[1760220533889,0.1265623,111060.0,111050.0,0.33]
[1760220534086,0.1265704,111050.0,111040.0,0.36989189]
[1760220534295,0.1265704,111050.0,111040.0,0.59989189]
[1760220535494,0.1039404,111050.0,111040.0,0.68985039]
[1760220535700,0.01399,111060.0,111050.0,0.0899504]
[1760220536001,0.1265623,111060.0,111050.0,0.26]
[1760220536300,0.4873623,111060.0,111050.0,0.26]
[1760220537202,0.8873623,111060.0,111050.0,0.26]
[1760220544505,1.22333349,111060.0,111050.0,0.26]
[1760220544709,1.22333349,111060.0,111050.0,0.2160352]
[1760220544900,1.22333349,111060.0,111050.0,0.1003601]
[1760220545305,0.1259485,111040.0,111030.0,0.34]
[1760220545506,0.1259566,111030.0,111020.0,0.3608]
[1760220545703,0.1259566,111030.0,111020.0,0.5808]
[1760220547006,0.5259566,111030.0,111020.0,0.22]
[1760220547200,0.8867566,111030.0,111020.0,0.22]
[1760220547598,0.95849962,111030.0,111020.0,0.22]
[1760220549809,0.17438962,111030.0,111020.0,0.22]
[1760220550803,0.17438962,111030.0,111020.0,0.7099747]
[1760220551714,0.19769962,111030.0,111020.0,0.62]
[1760220551914,0.17438962,111030.0,111020.0,0.62]
[1760220553117,0.17438962,111030.0,111020.0,0.9808]
[1760220553619,0.17438962,111030.0,111020.0,1.0707747]
[1760220553810,0.17438962,111030.0,111020.0,0.9808]
[1760220554009,0.17438962,111030.0,111020.0,0.62]
[1760220555317,0.19769962,111030.0,111020.0,0.22]
[1760220556316,0.1026439,111040.0,111030.0,0.0899666]
[1760220556513,0.1026439,111040.0,111030.0,0.25]
[1760220556707,0.17335852,111040.0,111030.0,0.25]
[1760220556913,0.17335852,111040.0,111030.0,0.3399666]
[1760220557606,0.17335852,111040.0,111030.0,0.25]
[1760220558007,0.17335852,111040.0,111030.0,0.3399666]
[1760220559019,0.19666852,111040.0,111030.0,0.3399666]
[1760220559220,0.17335852,111040.0,111030.0,0.3399666]
[1760220559716,0.19666852,111040.0,111030.0,0.3399666]
[1760220559916,0.19666852,111040.0,111030.0,0.25]
[1760220560925,0.17335852,111040.0,111030.0,0.25]
[1760220561224,0.19666852,111040.0,111030.0,0.25]
[1760220562619,0.17335852,111040.0,111030.0,0.25]
[1760220562814,0.19666852,111040.0,111030.0,0.3399666]
[1760220563210,0.51769508,111040.0,111030.0,0.3399666]
[1760220564416,0.51769508,111040.0,111030.0,0.25]
[1760220565118,0.19666852,111040.0,111030.0,0.25]
[1760220565315,0.51769508,111040.0,111030.0,0.25]
[1760220565516,0.19666852,111040.0,111030.0,0.25]
[1760220565721,0.51769508,111040.0,111030.0,0.25]
[1760220568526,0.19666852,111040.0,111030.0,0.25]
[1760220568716,0.51769508,111040.0,111030.0,0.25]
[1760220569322,0.17335852,111040.0,111030.0,0.25]
[1760220569619,0.17335852,111040.0,111030.0,0.6108]
[1760220570024,0.19666852,111040.0,111030.0,0.6108]
[1760220570419,0.17335852,111040.0,111030.0,0.6108]
[1760220571021,0.19666852,111040.0,111030.0,0.6108]
[1760220571525,0.17335852,111040.0,111030.0,0.6108]
[1760220571728,0.01268,111050.0,111040.0,0.0899585]
[1760220571920,0.1026304,111050.0,111040.0,0.25]
[1760220572223,0.1026304,111050.0,111040.0,0.66098506]
[1760220572617,0.1026304,111050.0,111040.0,1.06098506]
[1760220572816,0.1026304,111050.0,111040.0,1.42178506]
[1760220573717,0.5342754,111070.0,111050.0,0.0899504]
[1760220573923,0.0835411,111070.0,111060.0,0.41096886]
[1760220574126,0.1734753,111070.0,111060.0,0.56102656]
[1760220574319,0.1734753,111070.0,111060.0,0.65096886]
[1760220574525,0.1734753,111070.0,111060.0,1.01176886]
[1760220574818,0.1734753,111070.0,111060.0,0.6008]
[1760220575127,0.87688186,111070.0,111060.0,0.24]
[1760220575723,0.87788186,111070.0,111060.0,0.24]
[1760220576423,0.87888186,111070.0,111060.0,0.24]
[1760220579530,0.91883873,111070.0,111060.0,0.24]
[1760220582031,0.1754753,111070.0,111060.0,0.69092573]
[1760220582331,0.1754753,111070.0,111060.0,1.05172573]
[1760220583124,0.1754753,111070.0,111060.0,0.6907423]
[1760220583325,0.1046142,111070.0,111060.0,1.45172573]
[1760220583932,0.1046142,111070.0,111060.0,1.36178343]
[1760220584140,1.24957763,111070.0,111060.0,0.24]
[1760220584526,0.8885942,111070.0,111060.0,0.24]
[1760220584825,1.24957763,111070.0,111060.0,0.24]
[1760220585434,1.26463566,111070.0,111060.0,0.24]
[1760220586131,0.4885942,111070.0,111060.0,0.24]
[1760220586939,0.86463566,111070.0,111060.0,0.24]
[1760220587133,0.93679888,111070.0,111060.0,0.24]
[1760220590432,0.56075742,111070.0,111060.0,0.24]
[1760220590742,0.93679888,111070.0,111060.0,0.24]
[1760220591944,0.56075742,111070.0,111060.0,0.24]
[1760220592136,0.93679888,111070.0,111060.0,0.24]
[1760220592843,0.53757742,111070.0,111060.0,0.24]
[1760220593337,0.56075742,111070.0,111060.0,0.24]
[1760220594341,0.93679888,111070.0,111060.0,0.24]
[1760220594735,0.56075742,111070.0,111060.0,0.24]
[1760220595436,0.01468,111070.0,111060.0,1.46678376]
[1760220595636,0.1055142,111070.0,111060.0,1.46678376]
[1760220595835,0.1055142,111070.0,111060.0,1.0907423]
[1760220596541,0.1055142,111070.0,111060.0,1.0008]
[1760220597041,0.1286942,111070.0,111060.0,0.6008]
[1760220597343,0.1286942,111070.0,111060.0,0.24]
[1760220603644,1.28871407,111070.0,111060.0,0.24]
[1760220603844,1.28871407,111070.0,111060.0,0.1588576]
[1760220604042,0.1121285,111040.0,111030.0,0.3608]
[1760220604233,0.1121285,111040.0,111030.0,0.6008]
[1760220604234,0.50104996,111040.0,111030.0,0.6008]
[1760220605236,1.33233443,111040.0,111030.0,0.24]
[1760220609549,1.43225292,111040.0,111030.0,0.0626993]
[1760220609850,0.1250247,111020.0,111010.0,0.22]
[1760220610044,0.1028709,111000.0,110990.0,0.72086902]
[1760220610245,0.1028709,111000.0,110990.0,0.57086902]
[1760220610641,0.50108236,111000.0,110990.0,0.57086902]
[1760220611041,0.50108236,111000.0,110990.0,0.21006902]
[1760220611444,0.57341347,111000.0,110990.0,0.21006902]
[1760220611639,0.19737201,111000.0,110990.0,0.21006902]
[1760220611848,0.17520201,111000.0,110990.0,0.21206902]
[1760220612053,0.17420201,111000.0,110990.0,0.61206902]
[1760220613147,0.19637201,111000.0,110990.0,0.61306902]
[1760220613345,0.17420201,111000.0,110990.0,0.61306902]
[1760220613848,0.19637201,111000.0,110990.0,0.97386902]
[1760220614046,0.17420201,111000.0,110990.0,0.97386902]
[1760220614548,0.1018709,111000.0,110990.0,0.97386902]
[1760220615051,0.17210723,111000.0,110990.0,0.97386902]
[1760220615543,0.19427723,111000.0,110990.0,0.97386902]
[1760220616848,0.57031869,111000.0,110990.0,0.21306902]
[1760220617548,0.55573072,111000.0,110990.0,0.21306902]
[1760220618650,0.19427723,111000.0,110990.0,0.21306902]
[1760220618857,0.55573072,111000.0,110990.0,0.21306902]
[1760220620850,0.17210723,111000.0,110990.0,0.57452251]
[1760220621049,0.53356072,111000.0,110990.0,1.42532151]
[1760220621245,0.17210723,111000.0,110990.0,1.42532151]
[1760220621447,0.53356072,111000.0,110990.0,1.42532151]
[1760220621641,0.37368,111020.0,111000.0,0.0899909]
[1760220621946,0.01288,111020.0,111010.0,0.45143629]
[1760220622145,0.01288,111020.0,111010.0,0.70143629]
[1760220622344,0.48647819,111020.0,111010.0,0.25]
[1760220622549,0.46430819,111020.0,111010.0,1.06223629]
[1760220623147,0.01288,111020.0,111010.0,1.46223629]
[1760220623547,0.01288,111020.0,111010.0,1.1007828]
[1760220623860,0.1028547,111020.0,111010.0,1.1007828]
[1760220624555,0.1028547,111020.0,111010.0,1.0128]
[1760220624857,0.1028547,111020.0,111010.0,0.6128]
[1760220625357,0.01288,111020.0,111010.0,0.7027828]
[1760220625551,0.1028501,111030.0,111010.0,1.47904441]
[1760220625855,0.1028466,111030.0,111010.0,1.1027786]
[1760220626051,0.01288,111020.0,111010.0,0.6128]
[1760220626259,0.01288,111020.0,111010.0,0.7027828]
[1760220627549,0.01288,111020.0,111010.0,0.7017828]
[1760220627750,0.01288,111020.0,111010.0,0.7027828]
[1760220628650,0.01288,111030.0,111020.0,0.0899747]
[1760220628952,0.1028466,111030.0,111020.0,0.6907747]
[1760220629153,0.1028466,111030.0,111020.0,0.6008]
[1760220630456,0.17332657,111040.0,111020.0,1.46703631]
[1760220630651,0.17332657,111040.0,111030.0,0.3608]
[1760220630957,0.17332657,111040.0,111030.0,0.59966192]
[1760220631259,0.1028385,111040.0,111030.0,0.68962852]
[1760220631550,0.1028385,111040.0,111030.0,0.59966192]
[1760220632254,0.1028385,111040.0,111030.0,0.5908]
[1760220632454,0.1250085,111040.0,111030.0,0.5908]
[1760220632853,0.1028385,111040.0,111030.0,0.5908]
[1760220634158,0.17532351,111040.0,111030.0,0.5908]
[1760220635149,0.19721351,111040.0,111030.0,0.5908]
[1760220636352,0.17532351,111040.0,111030.0,0.5908]
[1760220636859,0.01288,111040.0,111030.0,1.05702821]
[1760220637060,0.01288,111040.0,111030.0,1.45702821]
[1760220638256,0.01288,111040.0,111030.0,1.0807666]
[1760220639055,0.08604917,111050.0,111040.0,0.0899585]
[1760220639256,0.17599957,111050.0,111040.0,0.6807585]
[1760220639659,0.19788957,111050.0,111040.0,0.5908]
[1760220639854,0.19788957,111050.0,111040.0,0.23]
[1760220640056,0.17599957,111050.0,111040.0,0.23]
[1760220640252,0.17599957,111050.0,111040.0,0.5908]
[1760220640961,0.17599957,111050.0,111040.0,0.6807585]
[1760220642058,0.01288,111060.0,111050.0,0.0899504]
[1760220642261,0.1028223,111060.0,111050.0,0.6108]
[1760220642461,0.17619353,111060.0,111050.0,0.6108]
[1760220643967,0.19938353,111060.0,111050.0,0.6108]
[1760220644561,0.52024708,111060.0,111050.0,0.25]
[1760220644865,1.28104708,111060.0,111050.0,0.25]
[1760220645569,1.29647628,111060.0,111050.0,0.25]
[1760220646165,0.96018353,111060.0,111050.0,0.25]
[1760220646471,1.29647628,111060.0,111050.0,0.25]
[1760220648971,0.93699353,111060.0,111050.0,0.25]
[1760220649166,0.53699353,111060.0,111050.0,0.25]
[1760220649368,0.56018353,111060.0,111050.0,0.25]
[1760220649770,0.17619353,111060.0,111050.0,0.3399504]
[1760220649969,0.17619353,111060.0,111050.0,0.6108]
[1760220650171,0.19938353,111060.0,111050.0,0.25]
[1760220650473,0.59938353,111060.0,111050.0,0.25]
[1760220651969,0.19938353,111060.0,111050.0,0.25]
[1760220653578,0.56018353,111060.0,111050.0,0.25]
[1760220654780,0.583362,111060.0,111050.0,0.25]
[1760220654977,0.08625123,111060.0,111050.0,0.25]
[1760220655176,0.08625123,111060.0,111050.0,0.7007504]
[1760220655481,0.17619353,111060.0,111050.0,0.6108]
[1760220657681,0.17619353,111060.0,111050.0,0.25]
[1760220658181,0.19938353,111060.0,111050.0,0.25]
[1760220659579,0.17619353,111060.0,111050.0,0.25]
[1760220659977,0.19938353,111060.0,111050.0,0.25]
[1760220660172,0.17619353,111060.0,111050.0,0.25]
[1760220660377,0.19938353,111060.0,111050.0,0.25]
[1760220660981,0.22257909,111060.0,111050.0,0.25]
[1760220661888,0.91967184,111060.0,111050.0,0.25]
[1760220662072,1.31967184,111060.0,111050.0,0.25]
[1760220662683,0.58337909,111060.0,111050.0,0.25]
[1760220662882,1.31967184,111060.0,111050.0,0.25]
[1760220665484,1.30443481,111060.0,111050.0,0.25]
[1760220665881,1.30443481,111060.0,111050.0,0.1908295]
[1760220666985,0.1250247,111020.0,111010.0,0.3608]
[1760220667177,0.44608042,111020.0,111010.0,0.5908]
[1760220667376,0.1250247,111020.0,111010.0,0.5908]
[1760220667786,0.4858247,111020.0,111010.0,0.23]
[1760220668489,0.4858247,111020.0,111010.0,0.231]
[1760220668891,0.82228989,111020.0,111010.0,0.231]
[1760220669593,0.55952483,111020.0,111010.0,0.232]
[1760220670784,0.89599002,111020.0,111010.0,0.232]
[1760220671888,0.55952483,111020.0,111010.0,0.232]
[1760220672488,0.89599002,111020.0,111010.0,0.232]
[1760220672792,0.55952483,111020.0,111010.0,0.232]
[1760220674992,0.89599002,111020.0,111010.0,0.232]
[1760220675293,0.19872483,111020.0,111010.0,0.232]
[1760220676290,0.1033947,111020.0,111010.0,0.9928]
[1760220677384,0.1033947,111020.0,111010.0,1.0827828]
[1760220679096,0.1033914,111030.0,111010.0,1.0827781]
[1760220680296,0.1033914,111030.0,111020.0,0.3608]
[1760220680594,0.1033914,111030.0,111020.0,0.5908]
[1760220680983,0.01342,111040.0,111020.0,1.41723989]
[1760220681184,0.1033789,111040.0,111020.0,1.0807747]
[1760220681791,0.01342,111030.0,111020.0,1.0807747]
[1760220681999,0.46148179,111030.0,111020.0,0.23]
[1760220682191,0.1250166,111030.0,111020.0,0.23]
[1760220682893,1.22228179,111030.0,111020.0,0.23]
[1760220683394,0.82228179,111030.0,111020.0,0.23]
[1760220683596,0.01342,111030.0,111020.0,1.0807747]
[1760220683792,0.1033866,111030.0,111020.0,0.63]
[1760220685494,0.1033866,111030.0,111020.0,0.9908]
[1760220686998,0.1250166,111030.0,111020.0,0.9908]
[1760220687195,0.1250166,111030.0,111020.0,0.23]
[1760220688497,0.01342,111030.0,111020.0,0.7199747]
[1760220689397,0.01342,111030.0,111020.0,1.0807747]
[1760220689598,0.1033831,111040.0,111030.0,0.0899666]
[1760220689599,0.1033788,111040.0,111030.0,0.0899666]
[1760220689798,0.1033788,111040.0,111030.0,0.3199666]
[1760220690496,0.1033788,111040.0,111030.0,0.23]
[1760220691202,0.1033788,111040.0,111030.0,0.3199666]
[1760220691405,0.1033788,111040.0,111030.0,0.5908]
[1760220691999,0.1033788,111040.0,111030.0,0.23]
[1760220692194,0.1033785,111040.0,111030.0,1.0807666]
[1760220692499,0.464176,111050.0,111030.0,1.0807666]
[1760220692801,0.103376,111050.0,111030.0,0.6807666]
[1760220693201,0.01395,111040.0,111030.0,0.6807666]
[1760220694200,0.01342,111050.0,111040.0,0.0899585]
[1760220694403,0.01342,111050.0,111040.0,0.6907585]
[1760220694603,0.01342,111050.0,111040.0,1.0907585]
[1760220695200,0.1033704,111050.0,111040.0,1.0907585]
[1760220695600,0.01342,111050.0,111040.0,1.0907585]
[1760220696198,0.1033704,111050.0,111040.0,1.0008]
[1760220696900,0.1266004,111050.0,111040.0,0.24878476]
[1760220697294,0.1266004,111050.0,111040.0,0.24]
[1760220700107,0.46306559,111050.0,111040.0,0.24]
[1760220700606,0.1266004,111050.0,111040.0,0.24]
[1760220700802,0.4874004,111050.0,111040.0,0.24]
[1760220703206,0.86354967,111050.0,111040.0,0.24]
[1760220704209,0.4874004,111050.0,111040.0,0.24]
[1760220704513,0.4641704,111050.0,111040.0,0.24]
[1760220705212,0.1033704,111050.0,111040.0,0.24]
[1760220705409,0.01342,111050.0,111040.0,1.46690777]
[1760220705602,0.1033704,111050.0,111040.0,1.46690777]
[1760220705807,0.1261004,111050.0,111040.0,0.64]
[1760220708914,0.1033704,111050.0,111040.0,0.64]
[1760220709214,0.1261004,111050.0,111040.0,0.64]
[1760220710713,0.90224967,111050.0,111040.0,0.24]
[1760220712316,0.90224967,111050.0,111040.0,0.1322407]
[1760220712317,1.63919894,111050.0,111040.0,0.1322407]
[1760220712507,1.63919894,111050.0,111040.0,0.0992866]
[1760220712708,0.1256347,111020.0,111010.0,0.3608]
[1760220712911,0.1256347,111020.0,111010.0,0.22]
[1760220712912,0.86258397,111020.0,111010.0,0.22]
[1760220713312,1.26258397,111020.0,111010.0,0.1620805]
[1760220713511,1.33385118,111020.0,111010.0,0.1620805]
[1760220713711,1.33385118,111020.0,111010.0,0.1072241]
[1760220713912,1.3569988,111020.0,111010.0,0.0270883]
[1760220714217,1.3569988,111020.0,110990.0,0.12006902]
[1760220714218,0.1256509,111000.0,110990.0,0.12006902]
[1760220714419,0.1256509,111000.0,110990.0,0.23006902]
[1760220714420,0.85641685,111000.0,110990.0,0.23006902]
[1760220714620,1.63256612,111000.0,110990.0,0.23006902]
[1760220714814,1.25441685,111000.0,110990.0,0.23006902]
[1760220715316,0.4844509,111000.0,110990.0,0.23006902]
[1760220715515,0.4844509,111000.0,110990.0,0.23306902]
[1760220715917,0.86060017,111000.0,110990.0,0.23306902]
[1760220718920,0.4617209,111000.0,110990.0,0.23306902]
[1760220719122,0.01093,111000.0,110990.0,1.46001729]
[1760220719315,0.37373,111010.0,110990.0,1.46001729]
[1760220719512,0.4637131,111010.0,110990.0,1.06001729]
[1760220719818,0.01293,111010.0,111000.0,0.82694017]
[1760220720018,0.01293,111010.0,111000.0,1.45694017]
[1760220720417,0.1256428,111010.0,111000.0,0.5908]
[1760220720719,0.1029079,111020.0,111000.0,1.45694017]
[1760220720915,0.1029079,111020.0,111010.0,0.3608]
[1760220721115,0.1029079,111020.0,111010.0,0.5708]
[1760220722224,0.1256379,111020.0,111010.0,0.5708]
[1760220722424,0.50178717,111020.0,111010.0,0.5718]
[1760220723125,0.1256379,111020.0,111010.0,0.5718]
[1760220723322,0.50178717,111020.0,111010.0,0.5718]
[1760220723521,0.50178717,111020.0,111010.0,0.5728]
[1760220724030,0.50178717,111020.0,111010.0,0.212]
[1760220724031,0.86258717,111020.0,111010.0,0.212]
[1760220724337,1.33372482,111020.0,111010.0,0.212]
[1760220725032,0.55757555,111020.0,111010.0,0.212]
[1760220725528,0.93372482,111020.0,111010.0,0.212]
[1760220725934,0.57292482,111020.0,111010.0,0.212]
[1760220726134,0.19677555,111020.0,111010.0,0.212]
[1760220726331,0.55757555,111020.0,111010.0,0.212]
[1760220726832,0.1029079,111020.0,111010.0,1.03893207]
[1760220727032,0.1029079,111020.0,111010.0,0.5728]
[1760220728224,0.01293,111020.0,111010.0,0.5728]
[1760220728727,0.01293,111030.0,111010.0,1.34894927]
[1760220728936,0.1028976,111030.0,111020.0,0.3608]
[1760220729136,0.1028976,111030.0,111020.0,0.5808]
[1760220729631,0.1258476,111030.0,111020.0,0.5808]
[1760220729836,0.1028976,111030.0,111020.0,0.5808]
[1760220730636,0.1028976,111030.0,111020.0,0.5818]
[1760220730835,0.1258476,111030.0,111020.0,0.5818]
[1760220731536,1.26279687,111030.0,111020.0,0.221]
[1760220731730,0.8866476,111030.0,111020.0,0.221]
[1760220731930,1.26279687,111030.0,111020.0,0.221]
[1760220732532,1.26279687,111030.0,111020.0,0.22]
[1760220732933,0.8866476,111030.0,111020.0,0.22]
[1760220733238,0.86279687,111030.0,111020.0,0.22]
[1760220734139,1.26279687,111030.0,111020.0,0.22]
[1760220734339,0.8866476,111030.0,111020.0,0.22]
[1760220734540,1.26279687,111030.0,111020.0,0.22]
[1760220736941,1.26279687,111030.0,111020.0,0.1578686]
[1760220737240,0.1259228,111010.0,111000.0,0.09]
[1760220737448,1.22367207,111010.0,111000.0,0.23]
[1760220737936,1.62367207,111010.0,111000.0,0.23]
[1760220738531,1.7467872,111010.0,111000.0,0.23]
[1760220739636,1.7467872,111010.0,111000.0,0.231]
[1760220739942,1.7467872,111010.0,111000.0,0.232]
[1760220740240,2.12293647,111010.0,111000.0,0.1214845]
[1760220740440,0.1259309,111000.0,110990.0,6.902e-05]
[1760220740640,0.1030052,110970.0,110960.0,0.3608]
[1760220740940,0.1030052,110970.0,110960.0,0.7008233]
[1760220741136,0.01299,110980.0,110960.0,0.61992854]
[1760220741337,0.01299,110980.0,110970.0,1.22696047]
[1760220741539,9.056e-05,110980.0,110970.0,1.45696047]
[1760220742435,0.01299,111000.0,110970.0,1.45696047]
[1760220742640,0.01299,111010.0,111000.0,0.0899909]
[1760220742841,0.01299,111010.0,111000.0,1.05694017]
[1760220743142,0.01299,111010.0,111000.0,1.0807909]
[1760220743646,0.1029728,111010.0,111000.0,1.0807909]
[1760220744040,0.14912915,111010.0,111000.0,0.5908]
[1760220744241,0.95933874,111010.0,111000.0,0.23]
[1760220744938,0.22238947,111010.0,111000.0,0.23]
[1760220745245,0.59853874,111010.0,111000.0,0.23]
[1760220745742,1.35933874,111010.0,111000.0,0.23]
[1760220747842,0.98318947,111010.0,111000.0,0.23]
[1760220748141,1.35933874,111010.0,111000.0,0.23]
[1760220749146,0.98318947,111010.0,111000.0,0.23]
[1760220749348,1.35933874,111010.0,111000.0,0.23]
[1760220749547,0.98318947,111010.0,111000.0,0.23]
[1760220749747,1.35933874,111010.0,111000.0,0.23]
[1760220751346,0.95933874,111010.0,111000.0,0.23]
[1760220751943,0.58318947,111010.0,111000.0,0.23]
[1760220752246,0.95933874,111010.0,111000.0,0.23]
[1760220752848,0.95936807,111010.0,111000.0,0.23]